Cogmind - Beta 16.1 @@@ ROGUE MODE // 2026.03.05 @ 10:39:31 Player: FL-IST Result: Self-destructed Performance ------------- Evolutions (7) 3500 Regions Visited (22) 4400 Robots Destroyed (152) 760 Value Destroyed (3528) 3528 Prototype IDs (24) 480 Alien Tech Used (0) 0 Bonus (1253) 1253 TOTAL SCORE: 13921 Bonus ------- High Alert Combat Kills 59 Follower Combat Kills 2870 Registered with UFD 300 Met Optimus in HQ 500 MAIN.C Attacked Warlord 500 Built Enhanced Grunts 300 Friendly Fire -3276 Cogmind --------- Core Integrity 1251/1300 Matter 275/300 Energy 265/265 System Corruption 0% Temperature Cool (0) Movement Flying (21) Location -3/Research Parts ------- > --- POWER (2) -------- Improved Ion Engine > --- PROPULSION (6) --- Improved Cesium-ion Thruster Improved Cesium-ion Thruster Improved Cesium-ion Thruster Biomechanical Wings Biomechanical Wings Electron Diverter > --- UTILITY (10) ----- Medium Storage Unit Advanced Signal Interpreter Improved Transmission Jammer System Shield Authchip [Processor] > --- WEAPON (3) ------- Tiamat Missile Launcher Dirty Datajack > --- INVENTORY (10) --- Advanced Cooling System Enhanced Optical Array Experimental Cloaking Device Centrium Medium Armor Plating Authchip [Propulsion] Authchip [Device] System Restoration Module Ionic Axe Vortex Lance (40) Vortex Lance (38) Peak State ------------ > --- POWER ------------ Backup Power III Micro Fission Core > --- PROPULSION ------- Improved Cesium-ion Thruster Improved Cesium-ion Thruster Biomechanical Wings Biomechanical Wings Impulse Thruster Electron Diverter > --- UTILITY ---------- Medium Storage Unit Experimental Sensor Array Advanced Signal Interpreter Improved Transmission Jammer Centrium Medium Armor Plating Advanced Hacking Suite Advanced Hacking Suite System Shield > --- WEAPON ----------- Dirty Datajack Ionic Axe Vortex Lance > --- INVENTORY -------- Improved Cesium-ion Thruster Advanced Cooling System Enhanced Optical Array Experimental Cloaking Device Authchip [Propulsion] Authchip [Device] Authchip [Processor] System Restoration Module Tiamat Missile Launcher Vortex Lance [Rating: 119] Favorites ----------- Power Nuclear Core Engine Ion Engine Power Core Nuclear Core Reactor Micro Antimatter Reactor Propulsion Improved VTOL Module Treads Light Treads Leg Carbon-fiber Leg Hover Unit Antigrav System Flight Unit Improved VTOL Module Utility Advanced Hacking Suite Device Seismic Detector Storage Medium Storage Unit Processor Advanced Signal Interpreter Hackware Advanced Hacking Suite Protection Hardened Medium Armor Plating Weapon Ionic Axe Energy Gun Plasma Rifle Energy Cannon Beam Cannon Ballistic Gun Light Assault Rifle Ballistic Cannon Assault Cannon Launcher Tiamat Missile Launcher Special Weapon CPS Tube Slashing Weapon Ionic Axe Piercing Weapon Vortex Lance Special Melee Weapon Dirty Datajack Build | -11 -10 -10 -9 -8 -8 -8 -8 -6 -6 -6 -6 -6 -6 -5 -5 -5 -5 -5 -5 -4 -4 -3 ------- Run | Yrd Mat Min Mat Mat Sto Rec Scr Fac Was Fac Ext Cet Arc Fac Was Fac Upp Upp War Pro Fac Res Slots Evolved 14 | . . . 2 2 . . . 4 . . . . . 2 . . . . . . 2 2 Power 1 | . . . . . . . . . . . . . . . . . . . . . 1 . Propulsion 4 | . . . 1 1 . . . 2 . . . . . . . . . . . . . . Utility 8 | . . . . 1 . . . 2 . . . . . 2 . . . . . . 1 2 Weapon 1 | . . . 1 . . . . . . . . . . . . . . . . . . . Parts Attached 167 | 7 6 4 11 2 15 5 1 18 9 12 18 3 9 11 3 12 4 2 7 1 4 3 Power 16 | 1 1 . . . 1 . 1 2 1 . 2 . 1 2 . 2 . . . . . 2 Engine 9 | 1 1 . . . . . 1 1 . . 2 . . . . 1 . . . . . 2 Core 6 | . . . . . 1 . . 1 . . . . 1 2 . 1 . . . . . . Reactor 1 | . . . . . . . . . 1 . . . . . . . . . . . . . Propulsion 46 | 2 1 1 8 . 7 3 . 2 2 3 7 . . 4 . 3 . . 1 1 1 . Treads 18 | 2 1 1 7 . 7 . . . . . . . . . . . . . . . . . Leg 2 | . . . . . . . . . . . 2 . . . . . . . . . . . Wheel . | . . . . . . . . . . . . . . . . . . . . . . . Hover 2 | . . . . . . . . . . . . . . 2 . . . . . . . . Flight 24 | . . . 1 . . 3 . 2 2 3 5 . . 2 . 3 . . 1 1 1 . Utility 65 | 2 2 . 1 2 2 2 . 11 4 6 5 1 6 3 2 7 3 . 3 . 2 1 Device 23 | 1 . . 1 . . . . 3 3 1 4 . 3 1 2 . 1 . 3 . . . Storage 6 | 1 2 . . . 1 . . . . 1 . . . . . . 1 . . . . . Processor 6 | . . . . 1 . . . 2 1 . . . . . . . 1 . . . . 1 Hackware 25 | . . . . . . 2 . 6 . 4 . . 3 2 . 6 . . . . 2 . Protection 5 | . . . . 1 1 . . . . . 1 1 . . . 1 . . . . . . Artifact . | . . . . . . . . . . . . . . . . . . . . . . . Weapon 40 | 2 2 3 2 . 5 . . 3 2 3 4 2 2 2 1 . 1 2 3 . 1 . Energy Gun 3 | . . . . . . . . . . . 1 1 . . . . . 1 . . . . Energy Cannon 4 | . . 1 . . 3 . . . . . . . . . . . . . . . . . Ballistic Gun 8 | 2 2 1 . . . . . . . . 1 1 1 . . . . . . . . . Ballistic Cannon 6 | . . . 2 . 2 . . . . . . . . . . . . 1 . . 1 . Launcher 6 | . . 1 . . . . . . 1 2 . . . 1 1 . . . . . . . Special Weapon 3 | . . . . . . . . . . 1 . . . . . . 1 . 1 . . . Impact Weapon . | . . . . . . . . . . . . . . . . . . . . . . . Slashing Weapon 5 | . . . . . . . . 1 1 . 2 . . 1 . . . . . . . . Piercing Weapon 1 | . . . . . . . . . . . . . . . . . . . 1 . . . Special Melee Weapon 4 | . . . . . . . . 2 . . . . 1 . . . . . 1 . . . Unidentified Prototypes 19 | . . . 2 . . . . . 2 1 . 3 . 4 2 . . . 5 . . . Corrupted Parts 6 | . . . . . . 1 . 3 . 1 . . . . . 1 . . . . . . System Corruption 20 | . . . . . . 1 . 12 . 3 . . . . . 4 . . . . . . Parts Lost 36 | . 1 3 3 . . . . 1 . 8 7 . . 3 . 1 . . 1 1 5 2 Power 8 | . 1 . 1 . . . . . . 1 . . . 1 . 1 . . . . 2 1 Propulsion 14 | . . 1 2 . . . . . . 4 3 . . 2 . . . . . 1 1 . Utility 7 | . . 1 . . . . . . . . 2 . . . . . . . 1 . 2 1 Weapon 7 | . . 1 . . . . . 1 . 3 2 . . . . . . . . . . . Highest Loss Streak 4 | . 1 1 1 . . . . 1 . 2 4 . . 2 . 1 . . 1 1 3 2 To Critical Strikes . | . . . . . . . . . . . . . . . . . . . . . . . Average Backups 13 | 2 11 13 13 14 17 19 19 14 14 9 10 9 10 9 10 9 9 10 9 8 9 9 Power . | . . . . . . 1 . . 1 . . 1 . . . . . . . . . . Propulsion 3 | 1 5 5 5 7 8 7 3 1 1 1 . . . . . . 1 2 2 1 1 . Utility 7 | . 2 5 4 3 4 7 12 10 7 6 9 8 9 9 9 9 7 7 6 5 6 7 Weapon 2 | . 2 2 3 4 4 3 2 1 2 . . . . . . . 1 1 1 2 2 2 Tool/Special . | . . . . . . . . . . . . . . . . . . . . . . . Unused Backups 31 | . 2 . 4 1 2 4 2 1 1 3 . . 2 2 . 1 . . 1 . . 5 Power 2 | . . . . . . . . . . 2 . . . . . . . . . . . . Propulsion 8 | . 2 . 1 . 2 2 . . . . . . . . . . . . 1 . . . Utility 15 | . . . 1 1 . 1 . 1 1 1 . . 2 2 . 1 . . . . . 4 Weapon 6 | . . . 2 . . 1 2 . . . . . . . . . . . . . . 1 Tool/Special . | . . . . . . . . . . . . . . . . . . . . . . . Average Slot Usage (%) 88 | . 98 97 91 81 98 94 72 90 89 84 74 87 87 86 92 88 88 88 95 97 94 76 Engine 3 | . 13 14 4 . . . 2 5 3 . 5 6 4 . . 1 . . . . 1 6 Core 3 | . . . . . 8 9 6 . . . . . 1 4 5 3 5 5 5 5 5 . Treads 11 | . 27 26 32 27 34 26 . . . . . . . . . . . . . . . . Flight 22 | . . . . . . 9 36 39 38 32 31 40 40 30 35 35 35 35 34 35 30 28 Device 7 | . 14 13 10 9 9 7 . 12 13 6 3 6 10 5 3 4 5 5 4 11 10 9 Storage 8 | . 14 14 11 9 9 9 9 6 6 6 6 6 6 5 5 5 5 5 5 5 5 4 Processor 2 | . . . . . . . . 5 6 6 6 6 6 5 5 5 5 5 5 5 5 4 Hackware 7 | . . . . . . 1 9 6 6 12 6 6 7 21 23 20 17 17 16 11 14 9 Protection 4 | . . . . 9 9 8 9 . . . 4 5 . . 1 . 4 5 5 5 5 . Energy Cannon 2 | . . 7 11 9 9 7 . . . . . . . . . . . . . . . . Ballistic Gun 3 | . 27 20 2 . . . . . . . . . . . . . . . . . . . Ballistic Cannon 4 | . . . 19 18 18 14 . . . . . . . . . . . . . . . . Slashing Weapon 2 | . . . . . . . . 5 10 5 5 6 6 4 5 5 5 4 5 5 4 3 Peak Build Rating 119 | 7 9 9 13 15 34 39 31 56 73 75 58 65 70 81 86 97 96 97 111 109 119 102 Average Rating 46 | 4 7 8 10 13 26 32 30 49 63 69 49 56 58 70 81 83 89 90 102 105 114 93 On Entrance 53 | . 7 9 7 11 13 33 30 31 53 68 52 57 60 64 78 83 90 90 90 109 103 87 Avg Prop Armor Cover (%) 10 | . . . . . . . . . . 8 8 . . 13 . . . . . . . . Naked Turns . | . . . . . . . . . . . . . . . . . . . . . . . Heaviest Build 72 | 13 28 30 35 37 72 70 55 36 37 34 35 34 31 26 30 32 28 33 38 38 41 37 Greatest Support 88 | 40 40 40 60 60 88 88 20 39 42 42 30 28 28 31 31 36 36 36 38 38 39 38 Greatest Overweight (x) 9 | . 3 1 9 . . 3 2 1 1 1 5 1 1 5 . 1 . . . 1 1 . Average Overweight (x) . | . . . . . . . 2 . . . . . . . . . . . . . . . Largest Inventory Capacity 20 | 8 15 15 15 15 20 20 20 20 15 15 10 10 10 10 10 10 10 10 10 10 10 10 Average Capacity 14 | 6 12 15 15 15 18 20 20 15 15 10 10 10 10 10 10 10 10 10 10 10 10 10 Most Carried 20 | 5 14 14 15 15 20 20 20 19 15 15 10 10 10 10 10 10 10 10 10 10 10 10 Average Carried 13 | 2 11 13 13 14 18 19 19 14 14 9 9 9 9 9 9 9 9 9 9 8 9 9 Final Capacity 20 | 8 15 15 15 15 20 20 20 15 15 10 10 10 10 10 10 10 10 10 10 10 10 10 Final Carried 20 | 5 14 13 15 14 20 19 20 12 15 10 9 10 10 10 10 10 10 10 9 10 10 10 Class Distribution -------------------- 27% | Hacker-Sprinter 19% | Commander-Mutant 17% | Mutant 9% | Commander-Tank 6% | Tank 3% | Gunner 3% | Scavenger-Sprinter 3% | Sprinter 3% | Commander-Sprinter Dominant Class ---------------- Mutant | -10/Materials Mutant | -10/Mines Gunner | -9/Materials Tank | -8/Materials Tank | -8/Storage Commander-Tank | -8/Recycling Commander-Mutant | -8/Scraptown Sprinter | -6/Factory Sprinter | -6/Waste Hacker-Sprinter | -6/Factory Scavenger-Sprinter | -6/Extension Commander-Mutant | -6/Cetus Commander-Sprinter | -6/Archives Hacker-Sprinter | -5/Factory Hacker-Sprinter | -5/Waste Hacker-Sprinter | -5/Factory Hacker-Sprinter | -5/Upper Caves Hacker-Sprinter | -5/Upper Caves Hacker-Sprinter | -5/Warlord Hacker-Sprinter | -4/Proximity Caves Hacker-Sprinter | -4/Factory Scavenger-Sprinter | -3/Research Resources | -11 -10 -10 -9 -8 -8 -8 -8 -6 -6 -6 -6 -6 -6 -5 -5 -5 -5 -5 -5 -4 -4 -3 ----------- Run | Yrd Mat Min Mat Mat Sto Rec Scr Fac Was Fac Ext Cet Arc Fac Was Fac Upp Upp War Pro Fac Res Matter Collected 5300 | 173 603 98 280 86 797 242 81 197 303 225 446 67 126 210 . 320 213 228 . 194 306 105 Remotely . | . . . . . . . . . . . . . . . . . . . . . . . Salvage Created 6817 | 53 951 94 351 36 867 520 . 92 143 522 605 87 320 538 . 300 423 408 . 62 64 381 Parts 295 | 9 59 1 15 . 36 18 . 8 6 23 16 . 28 25 . 9 7 8 . 3 8 16 Haulers Intercepted 14 | . 2 . 2 . 6 . . . . 1 . . . 2 . 1 . . . . . . Recyclers Shooed 4 | . . . 1 . 2 . . . . 1 . . . . . . . . . . . . Parts Field Recycled . | . . . . . . . . . . . . . . . . . . . . . . . Retrieved Matter . | . . . . . . . . . . . . . . . . . . . . . . . Parts Self-Destructed 7 | . . . . . . . . . . . . . . . . . 3 4 . . . . Prevented . | . . . . . . . . . . . . . . . . . . . . . . . Parts Restored . | . . . . . . . . . . . . . . . . . . . . . . . Kills | -11 -10 -10 -9 -8 -8 -8 -8 -6 -6 -6 -6 -6 -6 -5 -5 -5 -5 -5 -5 -4 -4 -3 ------- Run | Yrd Mat Min Mat Mat Sto Rec Scr Fac Was Fac Ext Cet Arc Fac Was Fac Upp Upp War Pro Fac Res Combat Hostiles Destroyed 76 | . 19 8 7 1 10 4 . . . 5 3 . . 1 . 4 4 6 . 2 1 1 Melee 3 | . . . . . . . . . . 1 1 . . 1 . . . . . . . . Guns 28 | . 19 7 . . . . . . . . 2 . . . . . . . . . . . Cannons 22 | . . 1 6 1 10 4 . . . . . . . . . . . . . . . . AOE 22 | . . . . . . . . . . 4 . . . . . 4 4 6 . 2 1 1 Classes Destroyed 18 | 1 9 1 1 . 1 . . . 1 1 . . . 2 . . . . . 1 . . Worker 5 | . 1 1 . . . . . 1 . 1 . . . 1 . . . . . . . . Builder 8 | . 1 . . . 1 1 . 1 . . 1 . . 1 . 1 . . . . 1 . Tunneler 3 | 3 . . . . . . . . . . . . . . . . . . . . . . Hauler 14 | . 2 . 2 . 6 . . . . 1 . . . 2 . 1 . . . . . . Recycler 16 | . 1 . 1 . 2 5 . . . . 3 . . 1 . 1 . . . . . 2 Mechanic 5 | . 1 . . . . . . . . 2 . . . 1 . . . . . . . 1 Operator 13 | . 1 . . . 1 . . . . . . . 9 . . 1 . . . . 1 . Drone 2 | . . . . . . . . . . . . . . . . . . . . 2 . . Watcher 10 | . 3 . . . 1 . . . . 3 . 1 . 1 . . . . . . 1 . Swarmer 30 | . 6 . 4 . . . . . . 5 1 . . . . 4 4 5 . . . 1 Grunt 20 | . 13 . . . 4 . . 1 . . 1 . . . . . . 1 . . . . Sentry 15 | . . . 3 1 5 4 . . . . 1 . . . . . . . . 1 . . Hunter 2 | . . . . . 1 . . . . . . . . . . . . . . . 1 . Programmer 1 | . . . . . . . . . . . . . . 1 . . . . . . . . Decomposer 1 | . . . . . . . . . . . . . . . . . . 1 . . . . Packrat 5 | . . . . . . . . . . . . . . . . . 5 . . . . . Assembled 8 | . . 8 . . . . . . . . . . . . . . . . . . . . Surgeon 2 | . . . . . . . . . . 2 . . . . . . . . . . . . Thug 1 | . . . . . . . . . . 1 . . . . . . . . . . . . Savage 1 | . . . . . . . . . . . . . . 1 . . . . . . . . Butcher 1 | . . . . . . . . . . 1 . . . . . . . . . . . . Martyr 2 | . . . . . . . . . 2 . . . . . . . . . . . . . Best Kill Streak 9 | 2 5 3 3 1 3 2 . 1 . 5 4 1 9 3 . 6 4 6 . 2 2 3 Combat Bots Only 6 | . 3 3 3 1 2 1 . . . 4 1 . . 1 . 4 4 6 . 2 1 1 Max Kills in Single Turn 4 | 1 1 1 1 1 1 1 . 1 1 3 1 1 1 1 . 4 3 4 . 2 1 1 Gunslinging . | . . . . . . . . . . . . . . . . . . . . . . . Exploded 4 | . . . . . . . . . . 2 . . . . . 3 3 4 . 2 1 1 Melee 1 | . . . . . . . . . . 1 1 . . 1 . . . . . . . . Uniques/NPCs Destroyed 1 | . . . . . . . . . . . . 1 . . . . . . . . . . A7 (-6/Cetus) Combat | -11 -10 -10 -9 -8 -8 -8 -8 -6 -6 -6 -6 -6 -6 -5 -5 -5 -5 -5 -5 -4 -4 -3 -------- Run | Yrd Mat Min Mat Mat Sto Rec Scr Fac Was Fac Ext Cet Arc Fac Was Fac Upp Upp War Pro Fac Res Hostile Shots Fired 480 | . 59 24 28 10 39 4 . 6 . 87 104 . . 25 . 6 3 9 . 10 56 10 Missed 170 | . 15 6 10 2 6 1 . 2 . 34 45 . . 9 . 3 1 5 . 3 24 4 Hits 310 | . 44 18 18 8 33 3 . 4 . 53 59 . . 16 . 3 2 4 . 7 32 6 Melee 13 | . . 8 . . . . . . . . . . . . . . . . . . 5 . Projectile 297 | . 44 10 18 8 33 3 . 4 . 53 59 . . 16 . 3 2 4 . 7 27 6 AOE 6 | . . . . . . . . . . . . . . . . . . . 2 . 4 . Critical Strikes 12 | . . 1 1 . . . . . . 2 2 . . 2 . . . . . 1 3 . Damage Taken 5038 | . 478 369 208 111 536 43 . 42 . 925 672 11 . 311 . 202 31 67 40 153 697 142 Core 1181 | . 101 39 16 12 60 . . . . 381 236 . . 19 . . . . . 24 244 49 Absorbed by Shields 135 | . . . . . . . . . . . 78 11 . . . . . . . . 46 . Regen/Repaired (Parts) 253 | . . . . . . . . . 116 44 . . . 25 . 35 . . 33 . . . Core Remaining (%) 75 | 100 . 44 96 . . . 86 . . . . . 27 . . . . . . 95 78 . Volleys Fired 281 | 4 77 34 22 10 70 23 . . . 5 6 . . . . 4 2 7 . 6 10 1 Largest 3 | 2 2 2 3 3 3 3 . . . 1 1 . . . . 1 1 1 . 1 1 1 Hottest 142 | 40 40 80 120 120 142 142 . . . 43 28 . . . . 46 46 46 . 46 47 46 Shots Fired 591 | 8 153 67 66 30 172 53 . . . 6 6 . . . . 4 2 7 . 6 10 1 Gun 223 | 8 153 48 8 . . . . . . . 6 . . . . . . . . . . . Cannon 337 | . . 19 58 30 172 53 . . . . . . . . . . . . . . 5 . Launcher 31 | . . . . . . . . . . 6 . . . . . 4 2 7 . 6 5 1 Special . | . . . . . . . . . . . . . . . . . . . . . . . Kinetic 433 | 8 153 48 44 20 119 30 . . . . 6 . . . . . . . . . 5 . Thermal 127 | . . 19 22 10 53 23 . . . . . . . . . . . . . . . . Explosive 31 | . . . . . . . . . . 6 . . . . . 4 2 7 . 6 5 1 Electromagnetic . | . . . . . . . . . . . . . . . . . . . . . . . Robot Hit Streak 22 | 3 22 12 15 4 11 8 . . . 5 4 . . . . 2 3 4 . 1 6 . Robot Miss Streak 9 | 1 3 3 3 2 5 3 . . . . 9 . . . . . . 2 . 1 . . Penetration Max . | . . . . . . . . . . . . . . . . . . . . . . . Secondary Targets 2 | . 2 . . . . . . . . . . . . . . . . . . . . . Max Gunslinging Chain 1 | . 1 . . . . . . . . . . . . . . . . . . . . . Shots Hit Robots 444 | 4 105 43 39 17 78 24 . 5 6 14 15 6 15 20 . 9 7 13 . 10 10 4 Core Hits 213 | 3 49 21 10 4 28 9 . 3 2 19 11 2 7 7 . 6 7 9 . 5 6 5 Critical Kills 4 | . 3 . 1 . . . . . . . . . . . . . . . . . . . Critical Parts Destroyed . | . . . . . . . . . . . . . . . . . . . . . . . Critical Strikes 12 | . 3 . 2 1 3 . . . 1 . 1 1 . . . . . . . . . . Meltdown 1 | . . . 1 . . . . . . . . . . . . . . . . . . . Destroy 3 | . 3 . . . . . . . . . . . . . . . . . . . . . Blast 5 | . . . 1 1 3 . . . . . . . . . . . . . . . . . Sever 3 | . . . . . . . . . 1 . 1 1 . . . . . . . . . . Melee Attacks 235 | . . . . . . . . 16 6 42 18 7 18 35 . 17 16 11 1 17 24 7 Impact . | . . . . . . . . . . . . . . . . . . . . . . . Slashing 217 | . . . . . . . . 15 6 42 18 7 18 30 . 17 16 11 . 13 20 4 Piercing 5 | . . . . . . . . . . . . . . . . . . . . 4 1 . Entropic 7 | . . . . . . . . . . . . . . . . . . . 1 . 3 3 Sneak Attacks 72 | . . . . . . . . 5 6 10 6 5 10 12 . 2 5 1 . 5 1 4 Combat Hostiles 3 | . . . . . . . . . . . 2 . . . . . . . . 1 . . Follow-up Attacks 1 | . . . . . . . . . . . . . . . . . . . . . . 1 Damage Inflicted 16873 | 48 1254 432 640 292 1768 575 . 282 629 1827 774 380 1469 973 . 1004 976 1519 . 528 921 582 Guns 1725 | 48 1254 292 52 . . . . . . . 79 . . . . . . . . . . . Cannons 3326 | . . 137 588 292 1768 541 . . . . . . . . . . . . . . . . Explosions 3035 | . . . . . . . . . . 760 . . . . . 432 301 644 . 167 611 120 Melee 8750 | . . . . . . . . 282 629 1067 695 380 1469 973 . 572 675 875 . 361 310 462 Ramming 37 | . . 3 . . . 34 . . . . . . . . . . . . . . . . Kinetic 3594 | 48 1254 292 396 185 1037 303 . . . . 79 . . . . . . . . . . . Thermal 1457 | . . 137 244 107 731 238 . . . . . . . . . . . . . . . . Explosive 3035 | . . . . . . . . . . 760 . . . . . 432 301 644 . 167 611 120 Electromagnetic . | . . . . . . . . . . . . . . . . . . . . . . . Impact . | . . . . . . . . . . . . . . . . . . . . . . . Slashing 8540 | . . . . . . . . 282 629 1067 695 380 1469 973 . 572 675 875 . 354 307 262 Piercing 10 | . . . . . . . . . . . . . . . . . . . . 7 3 . Entropic 200 | . . . . . . . . . . . . . . . . . . . . . . 200 Highest Corruption 21 | . . 5 . . 3 4 . 12 12 21 21 15 15 4 4 8 8 3 3 . . . Average Corruption 8 | . . 5 . . 2 3 . 11 12 16 20 14 9 4 4 6 3 3 3 . . . Corruption Purged 34 | . . . . . . . . . . 7 7 . 15 . . . 5 . . . . . Corruption Blocked . | . . . . . . . . . . . . . . . . . . . . . . . Effects 260 | . . 14 . . 11 37 . 5 11 47 52 16 13 3 1 24 18 8 . . . . Message Errors 61 | . . 2 . . 3 9 . . . 14 13 4 4 2 . 5 3 2 . . . . Matter Fused 57 | . . 3 . . 3 7 . 1 4 7 16 2 4 . . 4 4 2 . . . . Heat Flow Errors 38 | . . 3 . . 1 5 . 1 1 7 7 2 1 1 . 4 3 2 . . . . Energy Discharges 33 | . . 2 . . 2 4 . 1 1 4 5 4 1 . 1 3 3 2 . . . . Parts Rejected 4 | . . . . . . 1 . . 1 1 1 . . . . . . . . . . . Data Loss (minor) 33 | . . 1 . . 1 8 . 1 1 5 5 2 2 . . 3 4 . . . . . Data Loss (major) 16 | . . 1 . . . 2 . 1 2 2 3 2 1 . . 1 1 . . . . . Misfires 3 | . . 1 . . . . . . . 1 . . . . . 1 . . . . . . Alerts 6 | . . 1 . . . 1 . . 1 1 . . . . . 2 . . . . . . Misdirections 7 | . . . . . . . . . . 5 2 . . . . . . . . . . . Weapon Failures 2 | . . . . . 1 . . . . . . . . . . 1 . . . . . . Overload Shots . | . . . . . . . . . . . . . . . . . . . . . . . Overflow Damage 2475 | . . . 40 1 31 26 . 28 126 281 16 50 495 131 . 168 370 484 . 35 72 121 Projectiles 98 | . . . 40 1 31 26 . . . . . . . . . . . . . . . . Explosions 300 | . . . . . . . . . . 106 . . . . . 76 . 46 . . 72 . Melee 2077 | . . . . . . . . 28 126 175 16 50 495 131 . 92 370 438 . 35 . 121 Knockbacks 19 | . . . 7 1 9 2 . . . . . . . . . . . . . . . . Impact . | . . . . . . . . . . . . . . . . . . . . . . . Kinetic 19 | . . . 7 1 9 2 . . . . . . . . . . . . . . . . Secondary . | . . . . . . . . . . . . . . . . . . . . . . . Self-Inflicted Damage 216 | . . . . . . . . . . 85 . . . . . 130 . . . 1 . . Shots 5 | . . . . . . . . . . 2 . . . . . 2 . . . 1 . . Rammed 7 | . . 1 . . . 6 . . . . . . . . . . . . . . . . Targets Rammed 7 | . . 1 . . . 6 . . . . . . . . . . . . . . . . Kicked . | . . . . . . . . . . . . . . . . . . . . . . . Crushed . | . . . . . . . . . . . . . . . . . . . . . . . Highest Temperature 413 | . 6 226 334 179 413 249 . 224 308 282 264 154 177 389 . 194 279 245 . 8 3 . Average Temperature 84 | . 4 85 107 63 120 68 . 39 66 103 75 50 38 43 . 73 116 99 . 3 2 . Received Heat Transfer 989 | . 198 20 54 36 243 9 . . . 81 153 . . 153 . 9 . 9 . 18 6 . Effects 10 | . . . . . 8 . . . . . 1 . . . . . . 1 . . . . Shutdowns 2 | . . . . . 2 . . . . . . . . . . . . . . . . . Energy Bleed 2 | . . . . . . . . . . . 1 . . . . . . 1 . . . . Interference 2 | . . . . . 2 . . . . . . . . . . . . . . . . . Matter Decay 3 | . . . . . 3 . . . . . . . . . . . . . . . . . Damage (minor) 1 | . . . . . 1 . . . . . . . . . . . . . . . . . Siege Activations . | . . . . . . . . . . . . . . . . . . . . . . . Martial Activations . | . . . . . . . . . . . . . . . . . . . . . . . Shielding Activations . | . . . . . . . . . . . . . . . . . . . . . . . Robots Disrupted . | . . . . . . . . . . . . . . . . . . . . . . . Combat Hostiles . | . . . . . . . . . . . . . . . . . . . . . . . Robots Corrupted . | . . . . . . . . . . . . . . . . . . . . . . . Combat Hostiles . | . . . . . . . . . . . . . . . . . . . . . . . Parts Fried 1 | . . . . . . . . . . . . 1 . . . . . . . . . . Impact Corruptions . | . . . . . . . . . . . . . . . . . . . . . . . Robots Melted 1 | . . . 1 . . . . . . . . . . . . . . . . . . . Combat Hostiles 1 | . . . 1 . . . . . . . . . . . . . . . . . . . Parts Melted 5 | . . . 1 1 2 . . . . 1 . . . . . . . . . . . . Heat Transferred 2664 | . . 296 518 222 1221 407 . . . . . . . . . . . . . . . . Parts Sabotaged . | . . . . . . . . . . . . . . . . . . . . . . . Parts Stolen . | . . . . . . . . . . . . . . . . . . . . . . . Parts Stripped . | . . . . . . . . . . . . . . . . . . . . . . . Power Chain Reactions . | . . . . . . . . . . . . . . . . . . . . . . . Alert | -11 -10 -10 -9 -8 -8 -8 -8 -6 -6 -6 -6 -6 -6 -5 -5 -5 -5 -5 -5 -4 -4 -3 ------- Run | Yrd Mat Min Mat Mat Sto Rec Scr Fac Was Fac Ext Cet Arc Fac Was Fac Upp Upp War Pro Fac Res Maximum Alert Level 3 | . 1 . . . 1 1 . . . 2 2 2 1 3 1 2 . . . . . . Low Security (%) 71 | 100 93 100 100 100 76 99 . 100 100 66 6 . 47 43 . 1 . . . . 100 100 Level 1 20 | . 6 . . . 23 . . . . 23 58 98 52 23 100 62 . . . . . . Level 2 6 | . . . . . . . . . . 10 35 1 . 4 . 35 . . . . . . Level 3 1 | . . . . . . . . . . . . . . 27 . . . . . . . . Level 4 . | . . . . . . . . . . . . . . . . . . . . . . . Level 5 . | . . . . . . . . . . . . . . . . . . . . . . . High Security . | . . . . . . . . . . . . . . . . . . . . . . . Max Security . | . . . . . . . . . . . . . . . . . . . . . . . Peak Influence 877 | 5 219 18 81 30 383 207 . 45 21 579 668 434 280 877 296 487 . . . . 81 125 Initial 362 | . . 13 . . . 136 . . . . 225 362 88 33 296 193 . . . . . 5 Average 145 | . 90 . 15 2 114 91 . 8 1 205 380 311 193 328 288 378 . . . . 31 29 Influence Increases 7519 | 15 557 5 224 30 831 399 . 191 46 1097 1171 150 262 1212 . 530 90 260 . 40 259 150 Destroy 0b10 Robot/C 2680 | . 380 . 140 20 300 80 . 40 . 260 620 80 80 360 . 80 80 120 . . 20 20 Destroy 0b10 Robot/NC 455 | 15 50 5 15 . 65 30 . 10 . 35 30 5 45 70 . 20 . 20 . 10 15 15 Destroy Leader 472 | . 90 . 44 10 106 . . 10 . 48 60 . . 70 . 12 10 . . . 2 10 Allied During Kill 1160 | . . . . . 132 74 . 6 . 70 296 63 121 398 . . . . . . . . Successful Hack 214 | . 5 . 8 . 37 14 . 12 . 73 12 . . 27 . 16 . . . . 10 . Select Force Hacks 300 | . 30 . . . 60 180 . . . 30 . . . . . . . . . . . . Disable Machine 435 | . . . . . 105 15 . 15 . 90 30 . 15 60 . 105 . . . . . . Destroy Structure 588 | . 2 . 2 . 26 6 . 8 46 116 33 2 1 62 . 162 . . . . 92 30 Partial Spotted 135 | . . . . . . . . 30 . 60 15 . . . . 30 . . . . . . Lose Combat Pursuer 1080 | . . . 15 . . . . 60 . 315 75 . . 165 . 105 . 120 . 30 120 75 Influence Decreases 7414 | 15 521 41 224 30 480 750 . 191 46 636 984 576 388 460 572 411 485 96 164 40 249 55 Entered New Map 1908 | . . 23 . . . 215 . . . . 236 286 134 63 552 83 147 . 164 . . 5 Time Decay 4635 | 15 511 18 206 30 480 535 . 161 31 388 478 190 254 287 20 318 338 96 . 40 209 30 Search Patrol Dispatched 100 | . . . . . . . . . . 100 . . . . . . . . . . . . Lost Part 268 | . 10 . 18 . . . . 10 . 80 70 . . 10 . 10 . . . . 40 20 Lost Ally 503 | . . . . . . . . 20 15 68 200 100 . 100 . . . . . . . . Squads Dispatched 66 | . 4 . 1 . 3 . . 10 . 15 2 . . 7 . 12 . . . . 12 . Investigation 41 | . 3 . 1 . 2 . . 8 . 11 1 . . 1 . 10 . . . . 4 . Extermination 9 | . . . . . . . . 2 . 3 . . . 1 . 2 . . . . 1 . Reinforcement 13 | . 1 . . . 1 . . . . 1 1 . . 2 . . . . . . 7 . Assault 1 | . . . . . . . . . . . . . . 1 . . . . . . . . Garrison 2 | . . . . . . . . . . . . . . 2 . . . . . . . . Intercept . | . . . . . . . . . . . . . . . . . . . . . . . Searches Triggered 1 | . . . . . . . . . . 1 . . . . . . . . . . . . Construction Impeded 2 | . . . . . . . . . . . 1 . . . . . . . . . 1 . Haulers Reinforced 1 | . . . . . . . . . . . . . . 1 . . . . . . . . Active Scanning Responses . | . . . . . . . . . . . . . . . . . . . . . . . Cargo Convoy Interrupts . | . . . . . . . . . . . . . . . . . . . . . . . Stealth | -11 -10 -10 -9 -8 -8 -8 -8 -6 -6 -6 -6 -6 -6 -5 -5 -5 -5 -5 -5 -4 -4 -3 --------- Run | Yrd Mat Min Mat Mat Sto Rec Scr Fac Was Fac Ext Cet Arc Fac Was Fac Upp Upp War Pro Fac Res Distress Signals 15 | . 1 . . . 2 . . 1 . 2 . 1 . 4 . 1 . . . . 2 1 Communications Jammed 2 | . . . . . . . . . . . . . . . . . . . . 2 . . Distress Signals . | . . . . . . . . . . . . . . . . . . . . . . . Times Spotted 252 | . 28 8 8 3 20 2 . 4 3 47 25 4 7 36 5 6 2 5 3 6 20 10 Peak Tracking Total 14 | . 4 2 4 1 4 1 . 3 2 7 5 3 . 12 5 5 4 14 4 2 9 7 Tactical Retreats 36 | . . . 1 . . . . 2 1 11 3 . . 4 . 4 . 2 . 2 4 2 Traps | -11 -10 -10 -9 -8 -8 -8 -8 -6 -6 -6 -6 -6 -6 -5 -5 -5 -5 -5 -5 -4 -4 -3 ------- Run | Yrd Mat Min Mat Mat Sto Rec Scr Fac Was Fac Ext Cet Arc Fac Was Fac Upp Upp War Pro Fac Res Traps Triggered 26 | . 3 . 1 . 2 . . 2 . 5 3 . . 3 . 2 . . . . 5 . Indirectly . | . . . . . . . . . . . . . . . . . . . . . . . Trap Hack Attempts . | . . . . . . . . . . . . . . . . . . . . . . . Triggered . | . . . . . . . . . . . . . . . . . . . . . . . Disarmed . | . . . . . . . . . . . . . . . . . . . . . . . Reprogrammed . | . . . . . . . . . . . . . . . . . . . . . . . Reused . | . . . . . . . . . . . . . . . . . . . . . . . Traps Extracted . | . . . . . . . . . . . . . . . . . . . . . . . Installed . | . . . . . . . . . . . . . . . . . . . . . . . Triggered . | . . . . . . . . . . . . . . . . . . . . . . . Machines | -11 -10 -10 -9 -8 -8 -8 -8 -6 -6 -6 -6 -6 -6 -5 -5 -5 -5 -5 -5 -4 -4 -3 ---------- Run | Yrd Mat Min Mat Mat Sto Rec Scr Fac Was Fac Ext Cet Arc Fac Was Fac Upp Upp War Pro Fac Res Machines Disabled 31 | . . . . . 7 1 . 1 . 6 3 . 1 4 . 7 . . 1 . . . Max in Single Turn 6 | . . . . . 1 1 . 1 . 4 . . . . . 6 . . 1 . . . Garrison Access 5 | . . . . . 1 . . 1 . 2 . . . . . 1 . . . . . . Machines Repaired . | . . . . . . . . . . . . . . . . . . . . . . . Machines Dismantled . | . . . . . . . . . . . . . . . . . . . . . . . Machines Sabotaged . | . . . . . . . . . . . . . . . . . . . . . . . Overloaded Fab Kills . | . . . . . . . . . . . . . . . . . . . . . . . Hacking | -11 -10 -10 -9 -8 -8 -8 -8 -6 -6 -6 -6 -6 -6 -5 -5 -5 -5 -5 -5 -4 -4 -3 --------- Run | Yrd Mat Min Mat Mat Sto Rec Scr Fac Was Fac Ext Cet Arc Fac Was Fac Upp Upp War Pro Fac Res Machines Accessed 108 | . 6 . 4 . 13 12 2 14 . 25 6 . . 3 . 13 2 1 2 . 5 . Terminals 52 | . 5 . 3 . 10 6 . 5 . 12 6 . . 1 . 2 1 . . . 1 . Fabricators 10 | . . . . . . . . 2 . 4 . . . 1 . 3 . . . . . . Repair Stations 6 | . . . . . . . . . . 3 . . . 1 . 1 . . . . 1 . Recycling Units 25 | . 1 . . . 2 6 . 6 . 3 . . . . . 4 . . . . 3 . Scanalyzers 3 | . . . 1 . . . . . . 1 . . . . . 1 . . . . . . Garrison Access 6 | . . . . . 1 . . 1 . 2 . . . . . 2 . . . . . . Total Hacks 272 | . 22 . 13 . 37 32 8 32 . 58 9 . . 9 . 38 2 1 2 . 9 . Successful 163 | . 5 . 9 . 18 22 8 17 . 35 5 . . 7 . 27 2 1 2 . 5 . Failed 108 | . 17 . 3 . 19 10 . 15 . 23 4 . . 2 . 11 . . . . 4 . Catastrophic 11 | . 2 . . . 2 1 . 2 . 3 . . . . . . . . . . 1 . Database Lockouts 1 | . . . 1 . . . . . . . . . . . . . . . . . . . Manual 152 | . 19 . 8 . 23 20 . 22 . 36 . 1 . 2 . 14 . . . . 7 . Terminals 125 | . 18 . 7 . 27 13 . 15 . 25 9 . . 1 . 7 1 . . . 2 . Fabricators 42 | . . . . . . . . 7 . 13 . . . 3 . 19 . . . . . . Repair Stations 14 | . . . . . . . . . . 6 . . . 5 . 1 . . . . 2 . Recycling Units 54 | . 4 . . . 8 19 . 8 . 5 . . . . . 5 . . . . 5 . Scanalyzers 16 | . . . 6 . . . . . . 7 . . . . . 3 . . . . . . Garrison Access 9 | . . . . . 2 . . 2 . 2 . . . . . 3 . . . . . . Terminal Hacks 39 | . 1 . . . 6 1 8 4 . 5 5 . . 1 . 2 2 1 2 . 1 . Record 8 | . . . . . . . 7 . . . . . . . . . 1 . . . . . Part Schematic 2 | . . . . . . . . 1 . 1 . . . . . . . . . . . . Robot Schematic 1 | . . . . . 1 . . . . . . . . . . . . . . . . . Robot Analysis 2 | . 1 . . . 1 . . . . . . . . . . . . . . . . . Open Door 14 | . . . . . 4 . . . . 1 5 . . . . . 1 1 2 . . . Branch Access Points 5 | . . . . . . 1 . 1 . 1 . . . . . 1 . . . . 1 . Terminal Index 1 | . . . . . . . . . . . . . . . . 1 . . . . . . Fabricator Index 1 | . . . . . . . . 1 . . . . . . . . . . . . . . Locate Traps 1 | . . . . . . . . 1 . . . . . . . . . . . . . . Zone Layout 3 | . . . . . . . . . . 2 . . . 1 . . . . . . . . Proto ID Catalog 1 | . . . . . . . 1 . . . . . . . . . . . . . . . Fabricator Hacks 27 | . . . . . . . . 5 . 7 . . . 2 . 13 . . . . . . Network Status 4 | . . . . . . . . 1 . 1 . . . 1 . 1 . . . . . . Load Schematic 15 | . . . . . . . . 2 . 4 . . . 1 . 8 . . . . . . Build 8 | . . . . . . . . 2 . 2 . . . . . 4 . . . . . . Repair Station Hacks 7 | . . . . . . . . . . 3 . . . 3 . . . . . . 1 . Scan Component 4 | . . . . . . . . . . 2 . . . 2 . . . . . . . . Repair 2 | . . . . . . . . . . 1 . . . 1 . . . . . . . . Refit 1 | . . . . . . . . . . . . . . . . . . . . . 1 . Recycling Unit Hacks 8 | . 1 . . . 1 4 . . . 1 . . . . . 1 . . . . . . Retrieve Components 8 | . 1 . . . 1 4 . . . 1 . . . . . 1 . . . . . . Scanalyzer 14 | . . . 5 . . . . . . 7 . . . . . 2 . . . . . . Insert Component 5 | . . . 1 . . . . . . 3 . . . . . 1 . . . . . . Analyze 6 | . . . 1 . . . . . . 4 . . . . . 1 . . . . . . Retrieve Study 3 | . . . 3 . . . . . . . . . . . . . . . . . . . Garrison Access Hacks 5 | . . . . . 1 . . 1 . 2 . . . . . 1 . . . . . . Seal Access 5 | . . . . . 1 . . 1 . 2 . . . . . 1 . . . . . . Unauthorized Hacks 63 | . 3 . 4 . 10 17 . 7 . 10 . . . 1 . 8 . . . . 3 . Terminals 30 | . 2 . 4 . 8 11 . 2 . 3 . . . . . . . . . . . . Botnet 16 | . 1 . 1 . 4 6 . 1 . 3 . . . . . . . . . . . . Skim 14 | . 1 . 3 . 4 5 . 1 . . . . . . . . . . . . . . Fabricators 7 | . . . . . . . . . . 3 . . . 1 . 3 . . . . . . Prioritize 1 | . . . . . . . . . . 1 . . . . . . . . . . . . Recompile 6 | . . . . . . . . . . 2 . . . 1 . 3 . . . . . . Repair Stations 2 | . . . . . . . . . . 1 . . . . . 1 . . . . . . Patch 2 | . . . . . . . . . . 1 . . . . . 1 . . . . . . Recycling Units 24 | . 1 . . . 2 6 . 5 . 3 . . . . . 4 . . . . 3 . Tunnel 10 | . 1 . . . 2 6 . . . 1 . . . . . . . . . . . . Fedlink 14 | . . . . . . . . 5 . 2 . . . . . 4 . . . . 3 . Scanalyzers . | . . . . . . . . . . . . . . . . . . . . . . . Garrison Access . | . . . . . . . . . . . . . . . . . . . . . . . Data Cores Recovered 2 | . . . . . 1 . . . . . . . . . . 1 . . . . . . Used . | . . . . . . . . . . . . . . . . . . . . . . . Hacking Detections 66 | . 6 . 4 . 12 7 . 8 . 17 2 . . 2 . 5 1 . . . 2 . Full Trace Events 13 | . 2 . 1 . 1 . . 3 . 5 . . . . . 1 . . . . . . Feedback Events 1 | . . . . . . . . . . 1 . . . . . . . . . . . . Corruption 1 | . . . . . . . . . . 1 . . . . . . . . . . . . Feedback Blocked . | . . . . . . . . . . . . . . . . . . . . . . . Robot Schematics Acquired 1 | . . . . . 1 . . . . . . . . . . . . . . . . . Robots Built . | . . . . . . . . . . . . . . . . . . . . . . . Authchips . | . . . . . . . . . . . . . . . . . . . . . . . Time . | . . . . . . . . . . . . . . . . . . . . . . . Total Robot Build Rating . | . . . . . . . . . . . . . . . . . . . . . . . Part Schematics Acquired 7 | . . . 1 . . . . 1 . 4 . . . . . 1 . . . . . . Parts Built 8 | . . . . . . . . 2 . 2 . . . . . 4 . . . . . . Authchips 8 | . . . . . . . . 2 . 2 . . . . . 4 . . . . . . Time 425 | . . . . . . . . 78 . 79 . . . . . 268 . . . . . . Total Part Build Rating 38 | . . . . . . . . 10 . 12 . . . . . 16 . . . . . . Part Studies Acquired 3 | . . . 3 . . . . . . . . . . . . . . . . . . . Parts Repaired 2 | . . . . . . . . . . 1 . . . 1 . . . . . . . . Time 90 | . . . . . . . . . . 62 . . . 28 . . . . . . . . Parts Recycled . | . . . . . . . . . . . . . . . . . . . . . . . Recycled Matter . | . . . . . . . . . . . . . . . . . . . . . . . Retrieved Matter . | . . . . . . . . . . . . . . . . . . . . . . . Retrieved Components 15 | . . . . . . 10 . . . 3 . . . . . 2 . . . . . . Parts Scanalyzed 5 | . . . 1 . . . . . . 3 . . . . . 1 . . . . . . Part Schematics Acquired 5 | . . . 1 . . . . . . 3 . . . . . 1 . . . . . . Parts Damaged 2 | . . . . . . . . . . 1 . . . . . 1 . . . . . . Bothacking | -11 -10 -10 -9 -8 -8 -8 -8 -6 -6 -6 -6 -6 -6 -5 -5 -5 -5 -5 -5 -4 -4 -3 ------------ Run | Yrd Mat Min Mat Mat Sto Rec Scr Fac Was Fac Ext Cet Arc Fac Was Fac Upp Upp War Pro Fac Res Used RIF Installer . | . . . . . . . . . . . . . . . . . . . . . . . Robots Hacked 4 | . . . . . . . . 1 . . . . . 3 . . . . . . . . Non-combat 4 | . . . . . . . . 1 . . . . . 3 . . . . . . . . Combat . | . . . . . . . . . . . . . . . . . . . . . . . Robot Hacks Applied 6 | . . . . . . . . 1 . . . . . 5 . . . . . . . . parse_system 1 | . . . . . . . . . . . . . . 1 . . . . . . . . no_distress 2 | . . . . . . . . . . . . . . 2 . . . . . . . . find_chute 2 | . . . . . . . . 1 . . . . . 1 . . . . . . . . find_station 1 | . . . . . . . . . . . . . . 1 . . . . . . . . Relay Couplers Released . | . . . . . . . . . . . . . . . . . . . . . . . Fabnet Peak Effective % . | . . . . . . . . . . . . . . . . . . . . . . . Robots Rewired 14 | . . . . . . . . . . . 14 . . . . . . . . . . . Allies Hacked . | . . . . . . . . . . . . . . . . . . . . . . . Hacks Repelled . | . . . . . . . . . . . . . . . . . . . . . . . Allies | -11 -10 -10 -9 -8 -8 -8 -8 -6 -6 -6 -6 -6 -6 -5 -5 -5 -5 -5 -5 -4 -4 -3 -------- Run | Yrd Mat Min Mat Mat Sto Rec Scr Fac Was Fac Ext Cet Arc Fac Was Fac Upp Upp War Pro Fac Res Total Allies 57 | . . 1 . . 10 . . . 19 . 21 5 . . . . . . . 1 . . Largest Group 19 | . . 1 . . 10 10 10 3 19 10 12 11 9 9 . . . . . 1 . . Highest-Rated Group 702 | . . 31 . . 173 173 173 48 702 406 461 579 579 579 . . . . . 47 . . Highest-Rated Ally 159 | . . 31 . . 29 29 29 16 50 46 159 159 96 96 . . . . . 47 . . Initial UFD Resources 88 | . . . . . . . . 22 42 42 46 46 46 48 48 48 66 66 66 68 68 88 Total Orders 12 | . . . . . . . . . . . . 2 5 5 . . . . . . . . STAY 5 | . . . . . . . . . . . . . 2 3 . . . . . . . . ROAM 2 | . . . . . . . . . . . . 1 1 . . . . . . . . . FOLLOW 4 | . . . . . . . . . . . . . 2 2 . . . . . . . . AID 1 | . . . . . . . . . . . . 1 . . . . . . . . . . Ally Attacks 524 | . . 1 . . 45 3 . 18 93 37 166 35 21 105 . . . . . . . . Total Damage 15970 | . . 22 . . 569 29 . 204 4815 960 3317 779 743 4532 . . . . . . . . Kills 96 | . . 1 . . 7 . . 2 12 8 30 5 4 27 . . . . . . . . Allies Corrupted 2 | . . . . . . . . . . . . . . 2 . . . . . . . . Allies Melted . | . . . . . . . . . . . . . . . . . . . . . . . Intel | -11 -10 -10 -9 -8 -8 -8 -8 -6 -6 -6 -6 -6 -6 -5 -5 -5 -5 -5 -5 -4 -4 -3 ------- Run | Yrd Mat Min Mat Mat Sto Rec Scr Fac Was Fac Ext Cet Arc Fac Was Fac Upp Upp War Pro Fac Res Active Infowar (turns) 14030 | 18 1669 926 1040 260 1481 1392 . 587 262 782 549 396 541 698 10 568 923 531 247 591 488 71 Sensors 6227 | . . . . . . . . 587 262 782 547 . . 688 10 568 923 531 245 527 486 71 Terrain 1 | . . . . . . . . . . . 1 . . . . . . . . . . . Structural 37 | . . . . . . . . 37 . . . . . . . . . . . . . . Seismic 6786 | 18 1669 926 1040 260 1481 1392 . . . . . . . . . . . . . . . . Cloaking 969 | . . . . . . . . . . . 1 396 541 26 . . . . 2 . 3 . Jamming 133 | . . . . . . . . . . . . . . . . . . . 1 81 51 . Robot Analysis Total 2 | . 1 . . . 1 . . . . . . . . . . . . . . . . . Derelict Logs Recovered 8 | . . 2 . . . . . . . . . . . . . . 2 2 . 2 . . Drone Launches . | . . . . . . . . . . . . . . . . . . . . . . . Drone Recoveries . | . . . . . . . . . . . . . . . . . . . . . . . Exploration | -11 -10 -10 -9 -8 -8 -8 -8 -6 -6 -6 -6 -6 -6 -5 -5 -5 -5 -5 -5 -4 -4 -3 ------------- Run | Yrd Mat Min Mat Mat Sto Rec Scr Fac Was Fac Ext Cet Arc Fac Was Fac Upp Upp War Pro Fac Res Turns Passed 18758 | 122 1669 971 1041 262 1481 1747 2689 659 277 1060 1220 396 541 782 48 714 923 531 399 598 554 74 Spaces Moved 16435 | 63 805 498 520 139 702 1045 1349 967 270 2053 816 157 249 1161 126 898 926 958 715 975 953 90 Core 29 | 7 1 . 1 . . . . . . . 19 . . 1 . . . . . . . . Treads 3542 | 56 804 498 519 139 702 824 . . . . . . . . . . . . . . . . Legs 55 | . . . . . . . . . . . 55 . . . . . . . . . . . Wheels . | . . . . . . . . . . . . . . . . . . . . . . . Hover 136 | . . . . . . . . . . . . . . 136 . . . . . . . . Flight 12673 | . . . . . . 221 1349 967 270 2053 742 157 249 1024 126 898 926 958 715 975 953 90 Fastest Speed 20 | 50 160 160 160 160 145 145 176 20 20 24 20 20 20 20 21 21 21 21 21 21 21 21 Average Speed 69 | 147 160 163 160 160 151 155 176 26 36 26 62 73 22 31 21 24 21 21 21 21 22 21 Slowest Speed 500 | 160 200 240 500 160 160 251 176 93 93 97 300 94 94 300 21 91 21 21 21 89 88 21 Overloaded Moves . | . . . . . . . . . . . . . . . . . . . . . . . Propulsion Burnouts . | . . . . . . . . . . . . . . . . . . . . . . . Robots Hopped 25 | . . . . . . . . 3 . 9 3 . . . . 1 . . . . 9 . Potential Cave-ins 3 | . . . . . . . . . . . . . . . . . . . . . 3 . Cave-ins Triggered . | . . . . . . . . . . . . . . . . . . . . . . . Exploration Rate (%) 60 | 4 81 98 28 14 92 99 84 22 89 55 82 48 92 23 84 27 86 83 89 87 16 2 Regions Visited 22 Branch Regions 11 Pre-discovered Areas 13 | . 1 . . . 2 7 . 1 . 1 . . . . . . 1 . . . . . Known Exits Taken 12 | . . . . 1 . . 1 . . 1 1 1 1 . . 1 1 1 1 1 1 . Unknown Exits Taken 6 | 1 1 1 1 . 1 1 . . . . . . . . . . . . . . . . Scrap Searched 13 | . . 2 . . . . 3 . . . . . . . . . 2 2 . 4 . . Spaces Dug 134 | . . . . . . . . 8 . 27 . . . 10 . 8 10 2 . 51 17 1 Terrain Destroyed 593 | . . . . . 19 6 . 8 . 143 . . . 10 . 85 51 92 . 109 52 18 Melee 89 | . . . . . . . . 8 . 27 . . . 10 . 8 10 2 . 8 15 1 Projectile 30 | . . . . . 19 6 . . . . . . . . . . . . . . 5 . AOE 474 | . . . . . . . . . . 116 . . . . . 77 41 90 . 101 32 17 Terrain Rammed . | . . . . . . . . . . . . . . . . . . . . . . . Walls Destroyed . | . . . . . . . . . . . . . . . . . . . . . . . Machines Disabled . | . . . . . . . . . . . . . . . . . . . . . . . Actions | -11 -10 -10 -9 -8 -8 -8 -8 -6 -6 -6 -6 -6 -6 -5 -5 -5 -5 -5 -5 -4 -4 -3 --------- Run | Yrd Mat Min Mat Mat Sto Rec Scr Fac Was Fac Ext Cet Arc Fac Was Fac Upp Upp War Pro Fac Res Total 22835 | 81 1046 595 679 157 987 1127 1666 1346 435 2491 1483 427 704 1534 145 1364 1627 1262 961 1343 1239 136 Wait 5199 | 3 129 57 96 . 179 22 310 329 119 345 499 255 415 300 12 394 669 280 222 341 189 34 Move 16366 | 62 804 497 519 138 701 1044 1348 961 269 2034 809 156 248 1161 125 895 925 957 714 974 935 90 Hop 24 | . . . . . . . . 3 . 9 3 . . . . 1 . . . . 8 . Pick Up 112 | 5 14 . 13 3 9 9 4 5 6 17 1 2 4 3 1 8 1 . 3 1 3 . Fast Attach 114 | 7 6 1 7 . 2 3 . 3 9 2 19 2 8 16 2 5 4 2 7 . 6 3 Attach 72 | . 1 2 4 2 2 5 1 10 2 15 2 1 1 4 1 8 2 1 2 2 3 1 Detach 21 | . . 1 . . . . . 1 2 4 . . . 3 . 4 1 1 1 2 . 1 Swap 74 | . 5 2 4 1 11 . . 10 10 6 1 . 1 1 2 7 2 1 3 . 6 1 Drop 154 | . 10 . 14 3 13 15 3 8 12 12 8 4 9 11 2 10 5 2 8 . 4 1 Fire 281 | 4 77 34 22 10 70 23 . . . 5 6 . . . . 4 2 7 . 6 10 1 Melee 229 | . . . . . . . . 16 6 42 18 7 18 35 . 17 16 11 1 17 21 4 Ram 1 | . . . . . . 1 . . . . . . . . . . . . . . . . Kick . | . . . . . . . . . . . . . . . . . . . . . . . Crush 6 | . . 1 . . . 5 . . . . . . . . . . . . . . . . Escape Stasis 95 | . . . . . . . . . . . 30 . . . . 11 . . . . 54 . Rewire 87 | . . . . . . . . . . . 87 . . . . . . . . . . . Trap . | . . . . . . . . . . . . . . . . . . . . . . . Miscellaneous . | . . . . . . . . . . . . . . . . . . . . . . . Route ------- -11/Scrapyard -10/Materials (discovered 4 exits: *Mat / [*Min x2] / [*Sub]) -10/Mines (discovered 2 exits: *Mat x2) -9/Materials -8/Materials -8/Storage (discovered 2 exits: [*Fac] / *Rec) -8/Recycling (discovered 2 exits: *Fac / *Scr) -8/Scraptown (discovered 2 exits: *Fac x2) -6/Factory (discovered 4 exits: Low x2 / Ext x2) -6/Waste -6/Factory (discovered 4 exits: *Low x2 / *Ext x2) -6/Extension (discovered 2 exits: *Fac / *Cet) -6/Cetus -6/Archives (discovered 3 exits: *Fac / *Hub x2) -5/Factory -5/Waste -5/Factory (discovered 2 exits: *Upp x2) -5/Upper Caves -5/Upper Caves (discovered 2 exits: *Fac / *War) -5/Warlord -4/Proximity Caves -4/Factory (discovered 5 exits: *Res x2 / Upp x2 / Arm) -3/Research (discovered 1 exit: Res) History --------- Turn | Location | Event 4 | -11/Scrapyard | Discovered new exit (range 15) 123 | -11/Scrapyard | Entered Materials 307 | -10/Materials | Build established: Mutant 695 | -10/Materials | Discovered new exit (range 6) 818 | -10/Materials | Discovered new exit (range 8) 1019 | -10/Materials | Discovered new exit (range 14) 1166 | -10/Materials | Discovered new exit (range 16) 1792 | -10/Materials | Entered Mines 1872 | -10/Mines | Assembled infested the area 1877 | -10/Mines | Assisted by a Guerilla fighting off Assembled 2253 | -10/Mines | Learned 2 Materials zone layouts 2301 | -10/Mines | Discovered new exit (range 5) 2411 | -10/Mines | Learned Materials terminal intel 2415 | -10/Mines | Discovered new exit (range 8) 2418 | -10/Mines | Received a Mining Laser from a helpful Derelict 2687 | -10/Mines | Core integrity fell below 50% 2763 | -10/Mines | Entered Materials 2763 | -9/Materials | Evolved 2 slots: Propulsion x1, Weapon x1 2765 | -9/Materials | Loaded intel: 12 terminal locations 2790 | -9/Materials | Central database locked down 3267 | -9/Materials | Discovered new exit (range 3) 3594 | -9/Materials | Build established: Gunner 3804 | -9/Materials | Entered another Materials area 3804 | -8/Materials | Evolved 2 slots: Propulsion x1, Utility x1 3906 | -8/Materials | Discovered new exit (range 3) 4064 | -8/Materials | Identified exit to Storage 4066 | -8/Materials | Entered Storage 4105 | -8/Storage | Build established: Tank 5186 | -8/Storage | Assisted by bots powering up and referring to "LRC-V3" 5378 | -8/Storage | Discovered new exit (range 12) 5486 | -8/Storage | Build established: Commander-Tank 5515 | -8/Storage | Used back door to open Recycling access 5515 | -8/Storage | Discovered new exit (range 5) 5547 | -8/Storage | Entered Recycling 5547 | -8/Recycling | Accompanied by 10 allies 5888 | -8/Recycling | Scanned before Scraplab entrance 6057 | -8/Recycling | Discovered new exit (range 10) 6659 | -8/Recycling | Learned Storage garrison access intel 6708 | -8/Recycling | Learned Factory emergency access door positions 6715 | -8/Recycling | Learned Storage security intel 6717 | -8/Recycling | Learned 2 Storage zone layouts 7244 | -8/Recycling | Build established: Commander-Mutant 7262 | -8/Recycling | Entered Scraplab 7276 | -8/Recycling | Discovered new exit (range 2) 7294 | -8/Recycling | Entered Scraptown 7294 | -8/Scraptown | Accompanied by 10 allies 7294 | -8/Scraptown | System corruption cleaned by C-Scrubber 7295 | -8/Scraptown | Identified exit to Factory 7733 | -8/Scraptown | Visited SPCMW 7750 | -8/Scraptown | Visited Assassins FH 7793 | -8/Scraptown | Visited Red Mages 7865 | -8/Scraptown | Visited Cyclists 7942 | -8/Scraptown | Visited Comm Corps 8257 | -8/Scraptown | Visited UFD Registry 8257 | -8/Scraptown | Registered with UFD as "Slugkit" 8338 | -8/Scraptown | Visited Science Guys 8405 | -8/Scraptown | Visited Junk Repository 8472 | -8/Scraptown | Visited Scrapoid Research Area 8509 | -8/Scraptown | Visited Scrap Suit Storage 8532 | -8/Scraptown | Visited Scrapoid Pod Storage 8569 | -8/Scraptown | Visited Observation Area 8593 | -8/Scraptown | Visited Science Testing Area 8618 | -8/Scraptown | Visited A0-MCA Data Center 8944 | -8/Scraptown | Entered Cyclist Reading Room 9888 | -8/Scraptown | Met Optimus 9888 | -8/Scraptown | Accepted into 0bPrime 9983 | -8/Scraptown | Entered Factory 9983 | -6/Factory | Accompanied by 3 allies 9983 | -6/Factory | Evolved 4 slots: Propulsion x2, Utility x2 9984 | -6/Factory | Identified exit to Lower Caves 10033 | -6/Factory | Identified exit to Extension 10346 | -6/Factory | Loaded intel: 8 recycling unit locations 10350 | -6/Factory | Learned location of Protoforge (-3) 10513 | -6/Factory | System corruption reached 10% 10544 | -6/Factory | Fabricated Imp. Hacking Suite (x1) 10551 | -6/Factory | Fabricated Imp. Hacking Suite (x1) 10642 | -6/Factory | Manually triggered Chute Trap 10642 | -6/Factory | Sucked down chute 10642 | -6/Factory | Entered Waste 10646 | -6/Waste | Found Gamma Bomb Array 10664 | -6/Waste | Spotted C-40 Crusher 10694 | -6/Waste | Warlord forces began an assault 10708 | -6/Waste | Spotted C-40 Crusher 10714 | -6/Waste | Allies destroyed C-40 Crusher 10722 | -6/Waste | Spotted C-40 Crusher 10723 | -6/Waste | Allies destroyed C-40 Crusher 10730 | -6/Waste | Allies destroyed C-40 Crusher 10761 | -6/Waste | Lost 7 allies 10765 | -6/Waste | Spotted C-40 Crusher 10771 | -6/Waste | Allies destroyed C-40 Crusher 10796 | -6/Waste | Discovered new exit (range 15) 10856 | -6/Waste | Identified exit to Factory 10919 | -6/Waste | Entered Factory 10919 | -6/Factory | Accompanied by 10 allies 11131 | -6/Factory | Murdered 3 allies 11164 | -6/Factory | Build established: Hacker-Sprinter 11172 | -6/Factory | Loaded intel: 8 recycling unit locations 11382 | -6/Factory | Repaired Lrn. Sensor Array? 11396 | -6/Factory | Discovered exit to Lower Caves (range 14) 11435 | -6/Factory | Noticed a derelict Sapper rigging charges 11688 | -6/Factory | Fabricated Adv. Hacking Suite? 11718 | -6/Factory | Fabricated Adv. Hacking Suite (x1) 11745 | -6/Factory | Assembled infested ambush trap array 11789 | -6/Factory | Watched by a mysterious "MATRIX" hacker. 11801 | -6/Factory | Discovered exit to Lower Caves (range 12) 11969 | -6/Factory | Search patrols dispatched 11979 | -6/Factory | Entered Extension 12121 | -6/Extension | Core integrity fell below 50% 12171 | -6/Extension | Lost 3 allies 12187 | -6/Extension | Lost 4 parts (1n1u2w) 12286 | -6/Extension | Rescued a captive Derelict 12288 | -6/Extension | Rescued a captive Derelict 12328 | -6/Extension | Rescued A7 12374 | -6/Extension | Rescued a captive Derelict 12502 | -6/Extension | Build established: Scavenger-Sprinter 12617 | -6/Extension | Spotted B-75 Beast 12632 | -6/Extension | Allies destroyed B-75 Beast 12634 | -6/Extension | Spotted B-75 Beast 12665 | -6/Extension | Allies destroyed B-75 Beast 12687 | -6/Extension | Lost 3 parts (2n1u) 12824 | -6/Extension | Rescued a captive Derelict 12853 | -6/Extension | Rescued a captive Derelict 12854 | -6/Extension | Rescued a captive Derelict 13041 | -6/Extension | Discovered new exit (range 10) 13042 | -6/Extension | Discovered new exit (range 6) 13056 | -6/Extension | Identified exit to Factory 13069 | -6/Extension | Identified exit to Cetus 13199 | -6/Extension | Entered Cetus 13199 | -6/Cetus | Accompanied by 11 allies (A7) 13204 | -6/Cetus | Acquired a Cetus Manufacturing Module code from A7 13219 | -6/Cetus | Build established: Commander-Mutant 13234 | -6/Cetus | Spotted Cetus Guard 13239 | -6/Cetus | Spotted Cetus Guard 13255 | -6/Cetus | Allies destroyed Cetus Guard 13260 | -6/Cetus | Allies destroyed Cetus Guard 13290 | -6/Cetus | Lost 6 allies 13303 | -6/Cetus | Started Cetus Manufacturing Module 13319 | -6/Cetus | Murdered A7 13322 | -6/Cetus | Extracted ID and sensor layout for unrecognized location from A7's data core 13328 | -6/Cetus | Manufactured an Enhanced Grunt 13353 | -6/Cetus | Manufactured an Enhanced Grunt 13378 | -6/Cetus | Manufactured an Enhanced Grunt 13403 | -6/Cetus | Manufactured an Enhanced Grunt 13428 | -6/Cetus | Manufactured an Enhanced Grunt 13521 | -6/Cetus | Discovered new exit (range 16) 13534 | -6/Cetus | Identified exit to Archives 13595 | -6/Cetus | Entered Archives 13595 | -6/Archives | Accompanied by 9 allies 13709 | -6/Archives | Discovered new exit (range 16) 13724 | -6/Archives | Discovered new exit (range 16) 13962 | -6/Archives | Build established: Commander-Sprinter 14035 | -6/Archives | Identified exit to Hub_04(d) 14040 | -6/Archives | Discovered exit to Factory (range 13) 14136 | -6/Archives | Entered Factory 14136 | -5/Factory | Accompanied by 9 allies 14136 | -5/Factory | Evolved 2 slots: Utility x2 14239 | -5/Factory | Repaired Broken Lrn. Sensor Array 14483 | -5/Factory | Build established: Hacker-Sprinter 14736 | -5/Factory | First assault squad dispatched 14763 | -5/Factory | Garrison activated, responded to threat 14918 | -5/Factory | Manually triggered Chute Trap 14918 | -5/Factory | Sucked down chute 14918 | -5/Factory | Entered Waste 14927 | -5/Waste | Found Prototype Device 14927 | -5/Waste | Identified Exp. Sensor Array 14934 | -5/Waste | Spotted C-40 Crusher 14940 | -5/Waste | Spotted C-40 Crusher 14945 | -5/Waste | Spotted C-40 Crusher 14950 | -5/Waste | Spotted C-40 Crusher 14958 | -5/Waste | Discovered new exit (range 14) 14958 | -5/Waste | Spotted C-40 Crusher 14960 | -5/Waste | Found Prototype Device 14960 | -5/Waste | Identified Femtoactuators 14963 | -5/Waste | Spotted C-40 Crusher 14966 | -5/Waste | Identified exit to Factory 14966 | -5/Waste | Entered Factory 15122 | -5/Factory | Fabricated Imp. Cesium-ion Thruster (x1) 15167 | -5/Factory | Loaded intel: 8 recycling unit locations 15255 | -5/Factory | Fabricated Imp. Cesium-ion Thruster (x1) 15481 | -5/Factory | Fabricated Imp. Cesium-ion Thruster (x1) 15488 | -5/Factory | Identified exit to Upper Caves 15552 | -5/Factory | Fabricated Imp. Cesium-ion Thruster (x1) 15680 | -5/Factory | Entered Upper Caves 16366 | -5/Upper Caves | Learned Factory interactive machine intel 16541 | -5/Upper Caves | Discovered new exit (range 6) 16603 | -5/Upper Caves | Identified exit to Upper Caves 16603 | -5/Upper Caves | Entered another Upper Caves area 16617 | -5/Upper Caves | Discovered new exit (range 13) 16620 | -5/Upper Caves | Identified exit to Factory 16708 | -5/Upper Caves | Learned location of 1 exit from Factory 16719 | -5/Upper Caves | Learned 4 Factory zone layouts 17069 | -5/Upper Caves | Discovered new exit (range 2) 17069 | -5/Upper Caves | Identified exit to Warlord 17134 | -5/Upper Caves | Entered Warlord 17143 | -5/Warlord | System corruption cleaned by Quarantine Array 17254 | -5/Warlord | Found Prototype Special Weapon 17254 | -5/Warlord | Identified RU-N14's Throwing Claymores v3 17298 | -5/Warlord | Visited the Vortex Lab 17299 | -5/Warlord | Found Prototype Piercing Weapon 17299 | -5/Warlord | Identified Vortex Lance 17301 | -5/Warlord | Found Vortex Lance 17302 | -5/Warlord | Warlord's base attacked by MAIN.C 17317 | -5/Warlord | Found Prototype Device 17317 | -5/Warlord | Identified Exp. Cloaking Device 17324 | -5/Warlord | Found Prototype Device 17324 | -5/Warlord | Identified System Purifier 17523 | -5/Warlord | Opened side exit 17529 | -5/Warlord | Discovered new exit (range 9) 17530 | -5/Warlord | Identified exit to Proximity Caves 17533 | -5/Warlord | Entered Proximity Caves 17535 | -4/Proximity Caves | Lost 6 allies 17539 | -4/Proximity Caves | Learned 8 Research zone layouts 17632 | -4/Proximity Caves | Spotted B-86 Titan 17633 | -4/Proximity Caves | Learned Research trap positions 17707 | -4/Proximity Caves | Attracted the attention of an 0b10 checkpoint 18117 | -4/Proximity Caves | Discovered exit to Factory (range 16) 18131 | -4/Proximity Caves | Entered Factory 18131 | -4/Factory | Evolved 2 slots: Power x1, Utility x1 18132 | -4/Factory | Identified exit to Research 18134 | -4/Factory | Loaded intel: 54 interactive machine locations 18145 | -4/Factory | Noticed UFD Elites at a Recycling Unit 18165 | -4/Factory | Loaded intel: 8 recycling unit locations 18188 | -4/Factory | Identified exit to Upper Caves 18188 | -4/Factory | Identified exit to Armory 18679 | -4/Factory | Discovered exit to Research (range 9) 18685 | -4/Factory | Entered Research 18685 | -3/Research | Evolved 2 slots: Utility x2 18686 | -3/Research | Identified exit to Research 18687 | -3/Research | Loaded intel: 89 trap records 18711 | -3/Research | Lost 3 parts (1p1n1u) 18759 | -3/Research | Self-destructed Last Messages --------------- 18691_ Acquired 69 matter. 18692_ Acquired Lgt. Angular Momentum Engine. 18700_ Sneak attack on R-10 Processor. 18700_ R-10 Processor destroyed. 18703_ R-10 Processor collects Hpw. Tractor Beam. 18703_ Acquired 16 matter. 18703_ Sneak attack on R-10 Processor. 18703_ Destroyed Hpw. Tractor Beam. 18703_ R-10 Processor destroyed. 18706_ Acquired Unknown Engine. 18706_ Identified Imp. Ion Engine. 18713_ Acquired Unknown Processor. 18713_ Identified Core Analyzer. 18715_ Discarded Core Analyzer. 18724_ ALERT: All DSF locations entering lockdown mode. 18726_ Acquired 20 matter. 18754_ W-44 Eye sends out distress signal. 18756_ S-43 Plague destroyed. 18757_ Exp. Sensor Array destroyed. 18757_ Lgt. Angular Momentum Engine destroyed. Map ----- +----------------------------------------------------+ | ????????????????????????????????# # !] #?? | | ????????????????????????????????# # ! #?? | | ????????????????????????????????# # ]! #?? | | ????????????????????????????????# + = #?? | | ????????????????????????????????# # #?? | | ????????????????????????????????# # #?? | | ????????????????????????????????# #! #?? | | ????????????????????????????????# ###+########? | | ????????????^^??????????????????# | | ????????????^^??????????????????# | | ????????????????????????????????# | | ????????????????????????????????# | | ??????????????????###########???# ###+#######?? | | ??????????????????# "" #???# #???????????? | | ??????????????????# ""S #???# #???????????? | | ??????????????????# "" #???# #???????????? | | ??????????????????# #???# = #???????????? | | ??????????????????# #???#! ==#???????????? | | ??????????????????# #???#%=%!#???????????? | | ??????????????????# ! #####==!=#???????????? | | ??????????????????# ! ss #???????????? | | ??????????????????########pp #???????????? | | ??????????????????????# w %[ #???????????? | | ??????????????????????# s = #???????????? | | ??????????????????????# #???????????? | | ??????????????????????# @ #???????????? | | ??????????????????????#### ### ###???????????? | | ??????????????????????????####???????????????????? | | ?????????????????????????????????????????????????? | | ?????????????????????????????????????????????????? | | ?????????????????????????????????????????????????? | | ?????????????????????????????????????????????????? | | ###??????????????????????????????????????????????? | | ??????????????????????????????????????????????? | | ??????????????????????????????????????????????? | | ??????????????????????????????????????????????? | | ??????????????????????????????????????????????? | | ??????????????????????????????????????????????? | | ??????????????????????????????????????????????? | | ##+??????????????????????????????????????????????? | | ??????????????????????????????????????????????? | | ??????????????????????????????????????????????? | | "??????????????????????????????????????????????? | | ??????????????????????????????????????????????? | | ??????????????????????????????????????????????? | | ###??????????????????????????????????????????????? | | ?????????????????????????????????????????????????? | | ?????????????????????????????????????????????????? | | ?????????????????????????????????????????????????? | | ?????????????????????????????????????????????????? | +----------------------------------------------------+ Best States ------------- Heat Dissipation 46 Energy Generation 25 Energy Capacity 315 Matter Stores 300 Matter Capacity 300 Sight Range 16 Robot Scan Range 20 Terrain Scan Density 10 Jamming Range 14 Cloak Strength 2 Additional Mass Support 9 Armor Coverage 225 Evasion (%) 66 Recoil Reduction 4 Offensive Hacking 40 Defensive Hacking 14 Authchip Count 7 Item Schematics ----------------- Imp. VTOL Module | -9/Materials | Scanalyzed Imp. Hacking Suite | -6/Factory | Hacked Adv. Hacking Suite | -6/Factory | Hacked Imp. Cesium-ion Thruster | -6/Factory | Scanalyzed Lrn. Sensor Array | -6/Factory | Scanalyzed Lgt. Fission Core | -6/Factory | Scanalyzed Exp. Sensor Array | -5/Factory | Scanalyzed Robot Schematics ------------------ G-47 Trooper | -8/Storage | Hacked Fabricated ------------ Imp. Hacking Suite | x1 | -6/Factory | Authchip Imp. Hacking Suite | x1 | -6/Factory | Authchip Adv. Hacking Suite | x1 | -6/Factory | Authchip Adv. Hacking Suite | x1 | -6/Factory | Authchip Imp. Cesium-ion Thruster | x1 | -5/Factory | Authchip Imp. Cesium-ion Thruster | x1 | -5/Factory | Authchip Imp. Cesium-ion Thruster | x1 | -5/Factory | Authchip Imp. Cesium-ion Thruster | x1 | -5/Factory | Authchip Repaired ---------- Lrn. Sensor Array | 11% | -6/Factory Lrn. Sensor Array | 7% | -5/Factory | Broken Studied --------- Lgt. Treads | -9/Materials | Hacked Lgt. Assault Rifle | -9/Materials | Hacked Med. Laser | -9/Materials | Hacked Alien Tech Used ----------------- None Achievements -------------- None Challenges ------------ None Game ------ Seed ClaymoresThunderWings Manual? 0 Play Time 02:43:06 Cumulative 323.9 hours Start 2026.03.03 @ 13:44:50 End 2026.03.05 @ 10:39:31 Sessions 5 Manual Loads 0 Difficulty Rogue Special Mode None Game No. 261 Rogue 261 Adventurer 0 Explorer 0 Win Type - Total 18 Types 9/0/7/2/0/0/0/0/0/0 Lore% 85 Gallery% 75 Achievement% 62 Wizard Run 0 Options --------- Layout 1 ASCII 0 Keyboard 0 Movement Numpad Keybinds 0 Fullscreen 1 Font 32/SmallcapsGlow Map View 77x35 Zoom Use 0% Tactical HUD 1 Map Filters NONE Filters NONE Steam 1 RUN: d279fafa-25e3-4d13-b0e5-8f3a3125d710